Cogmind - Beta 16 @@@ ROGUE MODE // 2025.11.14 @ 20:19:12 // Winter2019/RPGLIKE Player: GFYguy Result: Destroyed by B-75 Beast with Magnetic Acceleration Cannon Performance ------------- Evolutions (3) 1500 Regions Visited (8) 1600 Robots Destroyed (32) 160 Value Destroyed (929) 929 Prototype IDs (1) 20 Alien Tech Used (0) 0 Bonus (898) 898 TOTAL SCORE: 5107 Bonus ------- Follower Combat Kills 232 Entered Garrisons 200 Used RIF Installer 500 Friendly Fire -34 Cogmind --------- Core Integrity 0/1500 Matter 259/300 Energy 290/290 System Corruption 0% Temperature Cool (60) Movement Walking (90) Location -7/Lower Caves Parts ------- > --- POWER (1) -------- Improved Deuterium Engine > --- PROPULSION (2) --- Carbon-fiber Leg VSS Leg > --- UTILITY (5) ------ Advanced Visual Processing Unit Improved Targeting Computer Improved Targeting Computer Core Analyzer Hardened Medium Armor Plating > --- WEAPON (2) ------- Gauss Rifle > --- INVENTORY (3) ---- Scrap Suit Improved Cooling System Peak State ------------ > --- POWER ------------ Improved Deuterium Engine > --- PROPULSION ------- Carbon-fiber Leg VSS Leg > --- UTILITY ---------- Advanced Visual Processing Unit Improved Targeting Computer Improved Targeting Computer Core Analyzer Hardened Medium Armor Plating > --- WEAPON ----------- Gauss Rifle Slug Cannon > --- INVENTORY -------- Scrap Suit Improved Cooling System [Rating: 33] Favorites ----------- Power Heavy Ion Engine Engine Heavy Ion Engine Power Core Micro Nuclear Core Propulsion Aluminum Leg Leg Aluminum Leg Utility Improved Targeting Computer Device Heat Sink Processor Improved Targeting Computer Protection Hardened Light Armor Plating Weapon Assault Rifle Ballistic Gun Assault Rifle Ballistic Cannon Slug Cannon Build | -11 -10 -10 -9 -9 -9 -9 -7 -7 ------- Run | Yrd Mat Min Mat Sto Gar Rec Fac Low Slots Evolved 6 | 2 . . 3 . . . 1 . Power . | . . . . . . . . . Propulsion 1 | 1 . . . . . . . . Utility 4 | . . . 3 . . . 1 . Weapon 1 | 1 . . . . . . . . Parts Attached 20 | 5 1 . 5 . 1 . 5 3 Power 4 | 1 . . 1 . . . 1 1 Engine 3 | 1 . . 1 . . . . 1 Core 1 | . . . . . . . 1 . Reactor . | . . . . . . . . . Propulsion 4 | 2 . . . . . . 2 . Treads . | . . . . . . . . . Leg 4 | 2 . . . . . . 2 . Wheel . | . . . . . . . . . Hover . | . . . . . . . . . Flight . | . . . . . . . . . Utility 8 | . 1 . 4 . 1 . 2 . Device 1 | . 1 . . . . . . . Storage . | . . . . . . . . . Processor 5 | . . . 3 . 1 . 1 . Hackware . | . . . . . . . . . Protection 2 | . . . 1 . . . 1 . Artifact . | . . . . . . . . . Weapon 4 | 2 . . . . . . . 2 Energy Gun . | . . . . . . . . . Energy Cannon . | . . . . . . . . . Ballistic Gun 3 | 2 . . . . . . . 1 Ballistic Cannon 1 | . . . . . . . . 1 Launcher . | . . . . . . . . . Special Weapon . | . . . . . . . . . Impact Weapon . | . . . . . . . . . Slashing Weapon . | . . . . . . . . . Piercing Weapon . | . . . . . . . . . Special Melee Weapon . | . . . . . . . . . Unidentified Prototypes 1 | . . . 1 . . . . . Parts Lost 1 | . . . . . . 1 . . Power . | . . . . . . . . . Propulsion . | . . . . . . . . . Utility 1 | . . . . . . 1 . . Weapon . | . . . . . . . . . Highest Loss Streak 1 | . . . . . . 1 . . To Critical Strikes . | . . . . . . . . . Average Backups 1 | . . . 1 2 1 1 1 2 Power . | . . . . . . . . . Propulsion . | . . . . . . . . . Utility 1 | . . . 1 2 1 1 1 2 Weapon . | . . . . . . . . . Tool/Special . | . . . . . . . . . Unused Backups 2 | . . . . . . . . 2 Power . | . . . . . . . . . Propulsion . | . . . . . . . . . Utility 2 | . . . . . . . . 2 Weapon . | . . . . . . . . . Tool/Special . | . . . . . . . . . Average Slot Usage (%) 97 | . 89 100 99 100 100 95 98 97 Engine 10 | . 16 16 11 11 11 11 6 4 Core 1 | . . . . . . . 4 5 Leg 24 | . 33 33 22 22 22 22 20 20 Device 2 | . 5 16 1 . . . . . Processor 27 | . . . 30 33 33 33 40 40 Protection 6 | . . . 10 11 11 6 5 10 Ballistic Gun 23 | . 33 33 22 22 22 21 20 15 Peak Build Rating 33 | 5 6 6 16 16 16 16 27 33 Average Rating 15 | 3 5 6 14 16 16 15 21 28 On Entrance 11 | . 5 6 6 16 16 16 14 27 Avg Prop Armor Cover (%) . | . . . . . . . . . Naked Turns . | . . . . . . . . . Heaviest Build 29 | 9 10 10 17 17 17 17 20 29 Greatest Support 27 | 20 20 20 20 20 20 20 27 27 Greatest Overweight (x) 1 | . . . . . . . . 1 Average Overweight (x) . | . . . . . . . . . Largest Inventory Capacity 3 | . . 3 3 3 3 3 3 3 Average Capacity 2 | . . . 3 3 3 3 3 3 Most Carried 3 | . . 2 3 3 3 3 3 3 Average Carried 1 | . . . 2 3 2 2 2 3 Final Capacity 3 | . . 3 3 3 3 3 3 3 Final Carried 3 | . . 2 3 3 2 2 3 3 Class Distribution -------------------- 73% | Mutant 26% | Hacker-Mutant Dominant Class ---------------- Mutant | -10/Materials Mutant | -10/Mines Mutant | -9/Materials Mutant | -9/Storage Mutant | -9/Garrison Mutant | -9/Recycling Hacker-Mutant | -7/Factory Hacker-Mutant | -7/Lower Caves Resources | -11 -10 -10 -9 -9 -9 -9 -7 -7 ----------- Run | Yrd Mat Min Mat Sto Gar Rec Fac Low Matter Collected 954 | 179 141 48 122 . 172 51 192 49 Remotely . | . . . . . . . . . Salvage Created 1051 | . 170 . 171 . 170 266 274 . Parts 71 | . 10 . 14 . 24 12 11 . Haulers Intercepted 1 | . . . 1 . . . . . Recyclers Shooed 3 | . 1 . . . . 2 . . Parts Field Recycled . | . . . . . . . . . Retrieved Matter . | . . . . . . . . . Parts Self-Destructed . | . . . . . . . . . Prevented . | . . . . . . . . . Parts Restored . | . . . . . . . . . Kills | -11 -10 -10 -9 -9 -9 -9 -7 -7 ------- Run | Yrd Mat Min Mat Sto Gar Rec Fac Low Combat Hostiles Destroyed 26 | . 3 1 2 . 12 4 4 . Guns 26 | . 3 1 2 . 12 4 4 . Classes Destroyed 9 | . 2 . 4 . . 3 . . Hauler 1 | . . . 1 . . . . . Recycler 4 | . 1 . . . . 3 . . Watcher 1 | . . . 1 . . . . . Swarmer 8 | . . . 1 . 7 . . . Grunt 10 | . 3 1 . . 2 . 4 . Duelist 1 | . . . . . . 1 . . Sentry 4 | . . . 1 . 3 . . . Hunter 1 | . . . . . . 1 . . Programmer 2 | . . . . . . 2 . . Best Kill Streak 5 | . 4 1 2 . 5 3 4 . Combat Bots Only 5 | . 3 1 1 . 5 2 4 . Max Kills in Single Turn 2 | . 1 1 1 . 2 1 1 . Gunslinging . | . . . . . . . . . Exploded . | . . . . . . . . . Melee . | . . . . . . . . . Uniques/NPCs Destroyed . | . . . . . . . . . Combat | -11 -10 -10 -9 -9 -9 -9 -7 -7 -------- Run | Yrd Mat Min Mat Sto Gar Rec Fac Low Hostile Shots Fired 263 | . 7 14 10 . 101 59 27 45 Missed 87 | . . 5 5 . 31 22 6 18 Hits 176 | . 7 9 5 . 70 37 21 27 Melee 6 | . . . . . . 6 . . Projectile 170 | . 7 9 5 . 70 31 21 27 Critical Strikes 4 | . . . 1 . 1 2 . . Part Disruptions 1 | . . . . . . 1 . . Damage Taken 2534 | . 75 106 89 . 748 638 366 512 Core 1903 | . 62 84 65 . 518 498 300 376 Absorbed by Shields . | . . . . . . . . . Redirected to Core 1483 | . 41 74 65 . 452 322 231 298 Core Remaining (%) 72 | 100 . 100 . . . 16 . . Volleys Fired 116 | . 12 6 12 . 27 38 16 5 Largest 2 | . 2 2 2 . 2 2 2 1 Hottest 40 | . 40 40 40 . 40 40 40 28 Shots Fired 195 | . 24 12 24 . 54 44 32 5 Gun 195 | . 24 12 24 . 54 44 32 5 Cannon . | . . . . . . . . . Launcher . | . . . . . . . . . Special . | . . . . . . . . . Kinetic 195 | . 24 12 24 . 54 44 32 5 Thermal . | . . . . . . . . . Explosive . | . . . . . . . . . Electromagnetic . | . . . . . . . . . Robot Hit Streak 27 | . 3 5 10 . 27 10 11 13 Robot Miss Streak 4 | . 4 2 3 . 3 4 2 . Penetration Max . | . . . . . . . . . Secondary Targets 7 | . 2 . 1 . 2 1 1 . Max Gunslinging Chain 1 | . 1 . 1 . 1 1 1 . Shots Hit Robots 137 | . 11 8 13 . 44 31 25 5 Core Hits 63 | . 6 3 5 . 18 13 14 4 Critical Kills 1 | . . . . . . 1 . . Critical Parts Destroyed 1 | . . . . . . . 1 . Critical Strikes 2 | . . . . . . 1 1 . Destroy 2 | . . . . . . 1 1 . Melee Attacks . | . . . . . . . . . Impact . | . . . . . . . . . Slashing . | . . . . . . . . . Piercing . | . . . . . . . . . Sneak Attacks . | . . . . . . . . . Combat Hostiles . | . . . . . . . . . Follow-up Attacks . | . . . . . . . . . Damage Inflicted 1754 | . 151 103 175 . 562 370 294 99 Guns 1754 | . 151 103 175 . 562 370 294 99 Cannons . | . . . . . . . . . Explosions . | . . . . . . . . . Melee . | . . . . . . . . . Ramming . | . . . . . . . . . Kinetic 1754 | . 151 103 175 . 562 370 294 99 Thermal . | . . . . . . . . . Explosive . | . . . . . . . . . Electromagnetic . | . . . . . . . . . Impact . | . . . . . . . . . Slashing . | . . . . . . . . . Piercing . | . . . . . . . . . Highest Corruption . | . . . . . . . . . Average Corruption . | . . . . . . . . . Corruption Purged . | . . . . . . . . . Corruption Blocked . | . . . . . . . . . Overload Shots . | . . . . . . . . . Overflow Damage . | . . . . . . . . . Projectiles . | . . . . . . . . . Explosions . | . . . . . . . . . Melee . | . . . . . . . . . Knockbacks . | . . . . . . . . . Impact . | . . . . . . . . . Kinetic . | . . . . . . . . . Secondary . | . . . . . . . . . Self-Inflicted Damage . | . . . . . . . . . Shots . | . . . . . . . . . Rammed . | . . . . . . . . . Targets Rammed . | . . . . . . . . . Kicked . | . . . . . . . . . Crushed . | . . . . . . . . . Highest Temperature 135 | . . 4 33 . 135 18 6 48 Average Temperature 53 | . . 4 24 . 81 13 3 26 Received Heat Transfer 633 | . 42 60 36 . 174 72 189 60 Siege Activations . | . . . . . . . . . Martial Activations . | . . . . . . . . . Shielding Activations . | . . . . . . . . . Robots Disrupted . | . . . . . . . . . Combat Hostiles . | . . . . . . . . . Robots Corrupted . | . . . . . . . . . Combat Hostiles . | . . . . . . . . . Parts Fried . | . . . . . . . . . Impact Corruptions . | . . . . . . . . . Robots Melted . | . . . . . . . . . Combat Hostiles . | . . . . . . . . . Parts Melted . | . . . . . . . . . Heat Transferred . | . . . . . . . . . Parts Sabotaged . | . . . . . . . . . Parts Stolen . | . . . . . . . . . Parts Stripped . | . . . . . . . . . Power Chain Reactions . | . . . . . . . . . Alert | -11 -10 -10 -9 -9 -9 -9 -7 -7 ------- Run | Yrd Mat Min Mat Sto Gar Rec Fac Low Maximum Alert Level 1 | . . . . . 1 . . . Low Security (%) 82 | 100 100 100 100 100 27 100 100 . Level 1 17 | . . . . . 72 . . . Level 2 . | . . . . . . . . . Level 3 . | . . . . . . . . . Level 4 . | . . . . . . . . . Level 5 . | . . . . . . . . . High Security . | . . . . . . . . . Max Security . | . . . . . . . . . Peak Influence 322 | . 87 98 173 64 322 144 74 . Initial 144 | . . 18 22 64 41 144 34 . Average 103 | . 40 22 100 64 244 109 35 . Influence Increases 1024 | . 107 108 259 . 321 129 100 . Destroy 0b10 Robot/C 720 | . 60 80 140 . 280 80 80 . Destroy 0b10 Robot/NC 35 | . 5 . 15 . . 15 . . Destroy Leader 104 | . 10 10 54 . 20 . 10 . Allied During Kill 60 | . . 18 35 . 7 . . . Successful Hack 74 | . 32 . . . 14 18 10 . Disable Machine 15 | . . . . . . 15 . . Destroy Structure 1 | . . . . . . 1 . . Lose Combat Pursuer 15 | . . . 15 . . . . . Influence Decreases 1024 | . 60 97 164 89 63 368 179 4 Entered New Map 407 | . . 29 36 89 23 178 49 3 Time Decay 547 | . 60 68 108 . . 180 130 1 Lost Part 10 | . . . . . . 10 . . Lost Ally 60 | . . . 20 . 40 . . . Squads Dispatched 2 | . 1 1 . . . . . . Investigation 1 | . 1 . . . . . . . Extermination . | . . . . . . . . . Reinforcement . | . . . . . . . . . Assault 1 | . . 1 . . . . . . Garrison . | . . . . . . . . . Intercept . | . . . . . . . . . Searches Triggered . | . . . . . . . . . Construction Impeded . | . . . . . . . . . Haulers Reinforced . | . . . . . . . . . Active Scanning Responses . | . . . . . . . . . Cargo Convoy Interrupts . | . . . . . . . . . Stealth | -11 -10 -10 -9 -9 -9 -9 -7 -7 --------- Run | Yrd Mat Min Mat Sto Gar Rec Fac Low Distress Signals 3 | . 1 . 1 . . 1 . . Communications Jammed . | . . . . . . . . . Distress Signals . | . . . . . . . . . Times Spotted 48 | . 5 4 8 . 16 8 6 1 Peak Tracking Total 9 | . 2 4 2 . 9 6 4 1 Tactical Retreats 1 | . . . 1 . . . . . Traps | -11 -10 -10 -9 -9 -9 -9 -7 -7 ------- Run | Yrd Mat Min Mat Sto Gar Rec Fac Low Traps Triggered . | . . . . . . . . . Indirectly . | . . . . . . . . . Trap Hack Attempts . | . . . . . . . . . Triggered . | . . . . . . . . . Disarmed . | . . . . . . . . . Reprogrammed . | . . . . . . . . . Reused . | . . . . . . . . . Traps Extracted . | . . . . . . . . . Installed . | . . . . . . . . . Triggered . | . . . . . . . . . Machines | -11 -10 -10 -9 -9 -9 -9 -7 -7 ---------- Run | Yrd Mat Min Mat Sto Gar Rec Fac Low Machines Disabled 1 | . . . . . . 1 . . Max in Single Turn 1 | . . . . . . 1 . . Machines Repaired . | . . . . . . . . . Machines Dismantled . | . . . . . . . . . Machines Sabotaged . | . . . . . . . . . Overloaded Fab Kills . | . . . . . . . . . Hacking | -11 -10 -10 -9 -9 -9 -9 -7 -7 --------- Run | Yrd Mat Min Mat Sto Gar Rec Fac Low Machines Accessed 11 | . 3 . . 1 2 2 3 . Terminals 7 | . 3 . . . 2 1 1 . Fabricators . | . . . . . . . . . Repair Stations . | . . . . . . . . . Recycling Units 1 | . . . . . . 1 . . Scanalyzers 2 | . . . . . . . 2 . Garrison Access 1 | . . . . 1 . . . . Total Hacks 26 | . 8 . . 1 3 8 6 . Successful 14 | . 3 . . 1 1 6 3 . Failed 11 | . 5 . . . 2 2 2 . Catastrophic 3 | . 1 . . . 1 . 1 . Database Lockouts 1 | . . . . . . . 1 . Manual . | . . . . . . . . . Terminals 18 | . 8 . . . 3 6 1 . Fabricators . | . . . . . . . . . Repair Stations . | . . . . . . . . . Recycling Units 2 | . . . . . . 2 . . Scanalyzers 5 | . . . . . . . 5 . Garrison Access 1 | . . . . 1 . . . . Terminal Hacks 8 | . 3 . . . 1 4 . . Part Schematic 1 | . . . . . . 1 . . Emergency Access Points 1 | . . . . . 1 . . . Repair Station Index 1 | . 1 . . . . . . . Dispatch Records 1 | . . . . . . 1 . . Hauler Manifests 1 | . 1 . . . . . . . Registered Components 1 | . . . . . . 1 . . Zone Layout 2 | . 1 . . . . 1 . . Fabricator Hacks . | . . . . . . . . . Repair Station Hacks . | . . . . . . . . . Recycling Unit Hacks 2 | . . . . . . 2 . . Retrieve Components 2 | . . . . . . 2 . . Scanalyzer 3 | . . . . . . . 3 . Retrieve Study 3 | . . . . . . . 3 . Garrison Access Hacks 1 | . . . . 1 . . . . Unlock Access 1 | . . . . 1 . . . . Unauthorized Hacks . | . . . . . . . . . Terminals . | . . . . . . . . . Fabricators . | . . . . . . . . . Repair Stations . | . . . . . . . . . Recycling Units . | . . . . . . . . . Scanalyzers . | . . . . . . . . . Garrison Access . | . . . . . . . . . Data Cores Recovered . | . . . . . . . . . Used . | . . . . . . . . . Hacking Detections 9 | . 3 . . 1 2 1 2 . Full Trace Events 1 | . 1 . . . . . . . Feedback Events . | . . . . . . . . . Feedback Blocked . | . . . . . . . . . Robot Schematics Acquired . | . . . . . . . . . Robots Built . | . . . . . . . . . Authchips . | . . . . . . . . . Time . | . . . . . . . . . Total Robot Build Rating . | . . . . . . . . . Part Schematics Acquired 1 | . . . . . . 1 . . Parts Built . | . . . . . . . . . Authchips . | . . . . . . . . . Time . | . . . . . . . . . Total Part Build Rating . | . . . . . . . . . Part Studies Acquired 3 | . . . . . . . 3 . Parts Repaired . | . . . . . . . . . Time . | . . . . . . . . . Parts Recycled . | . . . . . . . . . Recycled Matter . | . . . . . . . . . Retrieved Matter . | . . . . . . . . . Retrieved Components . | . . . . . . . . . Parts Scanalyzed . | . . . . . . . . . Part Schematics Acquired . | . . . . . . . . . Parts Damaged . | . . . . . . . . . Bothacking | -11 -10 -10 -9 -9 -9 -9 -7 -7 ------------ Run | Yrd Mat Min Mat Sto Gar Rec Fac Low Used RIF Installer 1 | . . . . . 1 . . . Robots Hacked . | . . . . . . . . . Non-combat . | . . . . . . . . . Combat . | . . . . . . . . . Robot Hacks Applied . | . . . . . . . . . Relay Couplers Released . | . . . . . . . . . Fabnet Peak Effective % . | . . . . . . . . . Robots Rewired . | . . . . . . . . . Allies Hacked . | . . . . . . . . . Hacks Repelled . | . . . . . . . . . Allies | -11 -10 -10 -9 -9 -9 -9 -7 -7 -------- Run | Yrd Mat Min Mat Sto Gar Rec Fac Low Total Allies 4 | . . 4 . . . . . . Largest Group 4 | . . 4 3 2 2 . . . Highest-Rated Group 71 | . . 71 55 24 24 . . . Highest-Rated Ally 31 | . . 31 31 16 16 . . . Total Orders . | . . . . . . . . . Ally Attacks 55 | . . 14 24 . 17 . . . Total Damage 577 | . . 152 247 . 178 . . . Kills 11 | . . 3 6 . 2 . . . Allies Corrupted . | . . . . . . . . . Allies Melted . | . . . . . . . . . Intel | -11 -10 -10 -9 -9 -9 -9 -7 -7 ------- Run | Yrd Mat Min Mat Sto Gar Rec Fac Low Active Infowar (turns) 1338 | . . . . . 371 372 278 317 Optics 1338 | . . . . . 371 372 278 317 Robot Analysis Total . | . . . . . . . . . Derelict Logs Recovered 1 | . . 1 . . . . . . Drone Launches . | . . . . . . . . . Drone Recoveries . | . . . . . . . . . Exploration | -11 -10 -10 -9 -9 -9 -9 -7 -7 ------------- Run | Yrd Mat Min Mat Sto Gar Rec Fac Low Turns Passed 2186 | 61 161 326 223 12 436 372 278 317 Spaces Moved 1568 | 49 101 247 148 10 285 234 189 305 Core 7 | 7 . . . . . . . . Treads . | . . . . . . . . . Legs 1561 | 42 101 247 148 10 285 234 189 305 Wheels . | . . . . . . . . . Hover . | . . . . . . . . . Flight . | . . . . . . . . . Fastest Speed 50 | 50 120 120 120 120 120 120 90 90 Average Speed 115 | 110 120 120 120 120 120 120 116 99 Slowest Speed 170 | 120 120 120 120 120 120 120 120 170 Overloaded Moves . | . . . . . . . . . Propulsion Burnouts . | . . . . . . . . . Robots Hopped . | . . . . . . . . . Potential Cave-ins . | . . . . . . . . . Cave-ins Triggered . | . . . . . . . . . Exploration Rate (%) 32 | 4 23 55 17 7 58 74 5 53 Regions Visited 8 Branch Regions 4 Pre-discovered Areas . | . . . . . . . . . Known Exits Taken 1 | . . . . 1 . . . . Unknown Exits Taken 6 | 1 1 1 1 . . 1 1 . Scrap Searched 3 | . . 1 . . . . . 2 Spaces Dug . | . . . . . . . . . Terrain Destroyed . | . . . . . . . . . Melee . | . . . . . . . . . Projectile . | . . . . . . . . . AOE . | . . . . . . . . . Terrain Rammed . | . . . . . . . . . Walls Destroyed . | . . . . . . . . . Machines Disabled . | . . . . . . . . . Actions | -11 -10 -10 -9 -9 -9 -9 -7 -7 --------- Run | Yrd Mat Min Mat Sto Gar Rec Fac Low Total 1751 | 53 116 264 169 10 326 281 215 317 Wait 15 | . . 7 . . . 8 . . Move 1561 | 48 100 246 147 10 284 233 188 305 Hop . | . . . . . . . . . Pick Up 9 | . . 1 3 . 1 1 3 . Fast Attach 12 | 5 1 . 3 . . . 2 1 Attach 5 | . . . 2 . 1 1 1 . Detach . | . . . . . . . . . Swap 4 | . . . . . . . 2 2 Drop 11 | . . . 2 . 2 . 3 4 Fire 116 | . 12 6 12 . 27 38 16 5 Melee . | . . . . . . . . . Ram . | . . . . . . . . . Kick . | . . . . . . . . . Crush . | . . . . . . . . . Escape Stasis . | . . . . . . . . . Rewire . | . . . . . . . . . Trap . | . . . . . . . . . Miscellaneous 18 | . 3 4 . . 11 . . . Route ------- -11/Scrapyard -10/Materials -10/Mines -9/Materials -9/Storage -9/Garrison (discovered 2 exits: *Rec x2) -9/Recycling -7/Factory -7/Lower Caves History --------- Turn | Location | Event 4 | -11/Scrapyard | Discovered new exit (range 15) 6 | -11/Scrapyard | Upgraded with Propulsion slot (x1) 6 | -11/Scrapyard | Upgraded with Weapon slot (x1) 62 | -11/Scrapyard | Entered Materials 194 | -10/Materials | Discovered new exit (range 11) 223 | -10/Materials | Entered Mines 251 | -10/Mines | Assembled infested the area 299 | -10/Mines | Assisted by bots powering up and referring to "LRC-V3" 301 | -10/Mines | Build established: Mutant 376 | -10/Mines | Met a Derelict testing a Signal Generator 387 | -10/Mines | Learned Materials security intel 469 | -10/Mines | Reached level 2 501 | -10/Mines | Found a Scrap Suit stashed away for nefarious purposes 503 | -10/Mines | Found Scrap Suit 525 | -10/Mines | Discovered new exit (range 13) 549 | -10/Mines | Entered Materials 549 | -9/Materials | Accompanied by 3 allies 551 | -9/Materials | Reached level 3 555 | -9/Materials | Upgraded with Utility slot (x3) 733 | -9/Materials | Discovered new exit (range 5) 772 | -9/Materials | Entered Storage 772 | -9/Storage | Accompanied by 2 allies 774 | -9/Storage | Reached level 4 784 | -9/Storage | Identified exit to Garrison 784 | -9/Storage | Entered Garrison 784 | -9/Garrison | Accompanied by 2 allies 841 | -9/Garrison | Reached level 5 848 | -9/Garrison | Triggered checkpoint 888 | -9/Garrison | Core integrity fell below 50% 940 | -9/Garrison | Triggered checkpoint 952 | -9/Garrison | Triggered checkpoint 954 | -9/Garrison | Triggered checkpoint 1033 | -9/Garrison | Discovered new exit (range 10) 1171 | -9/Garrison | Installed Relay Interface Framework 1171 | -9/Garrison | Reached level 6 1191 | -9/Garrison | Discovered new exit (range 14) 1220 | -9/Garrison | Entered Recycling 1466 | -9/Recycling | Reached level 7 1564 | -9/Recycling | Core integrity fell below 20% 1569 | -9/Recycling | Discovered new exit (range 19) 1592 | -9/Recycling | Entered Factory 1593 | -7/Factory | Core integrity fell below 50% 1593 | -7/Factory | Core integrity fell below 20% 1594 | -7/Factory | Reached level 8 1723 | -7/Factory | Upgraded with Utility slot (x1) 1826 | -7/Factory | Discovered new exit (range 14) 1862 | -7/Factory | Central database locked down 1870 | -7/Factory | Entered Lower Caves 1913 | -7/Lower Caves | Build established: Hacker-Mutant 2031 | -7/Lower Caves | Spotted B-75 Beast 2049 | -7/Lower Caves | Found DCF Scrap (11 items) 2187 | -7/Lower Caves | Destroyed by B-75 Beast with Magnetic Acceleration Cannon Last Messages --------------- 02049_ Found Mak. Power Source. 02049_ Found Imp. Deuterium Engine. 02049_ Found Carbon-fiber Leg+. 02049_ Found Com. Wheel. 02049_ Found Airjet. 02049_ Found Recalibrator. 02049_ Found Adv. Terrain Scan Processor. 02049_ Found Slug Cannon. 02049_ Found Gauss Rifle. 02049_ Found 187 Matter. A note is attached: "With love, from the DCF." 02050_ Acquired 10 matter. 02051_ Dropped Assault Rifle. 02053_ Dropped Mic. Nuclear Core+. 02057_ Dropped Assault Rifle. 02058_ Acquired Slug Cannon. 02119_ Dropped Slug Cannon. 02119_ Acquired 3 matter. 02129_ Acquired 6 matter. 02179_ Slug penetrates B-75 Beast. Map ----- +----------------------------------------------------+ | ?????????????????????????????????????????????????? | | ?????????????????????????????????????????????????? | | ?????????????????????????????????????????????????? | | ?????????????????????????????????????????????????? | | ?????????????????????????????????????????????????? | | ?????????????????????????????????????????????????? | | ?????????????????????????????????????????????????? | | ###??????????????????????????????????????????????? | | # ##????????##???????????????????????????????????? | | #??????## ##???????????#####??????????????????? | | #??????## ????????????# ##?????????????????? | | ####???? ????????????# ??????????????????? | | #???? ????????????# #??????????????????? | | ## #???? ?????????# ##????????????? ???? | | ## ###?? #?# ???????# ##??????????? ??? | | ## #??# #??# ###### ##?????????? ## | | ## #??# #???# #??????????# | | " #??# #???# #####???????????# | | % #??# #???## ###### #????????????????# | | #### #?????### ### ##????????????????# | | ## #???### #?????????????????# | | % ## #??## #??????????????????# | | ; #### #??????????????????## | | BB % ##??????????????????# | | BB ;#??######??????????# | | ## #" ## @ ##??## ###????????## | | ##### #### #### % ##???# ##????????# | | ## #??###??# ##??# ##?????# ##???????? | | ############### #???# #??????## #???####? | | ????## #?####??## ##???????#### #??## ## | | ??## ?#????### #??????????## ##?# # | | ??# ? #???## ##????????### ### | | ??# ?? #????# #????????## ### | | ??# #?? #????## ##???????## ### ### | | ?## ## #?????## ########### ##### | | ?# #??????##??# ### # | | ## #??????????# #?## ## ## | | * ##?????##### #??## ## ## | | ! ## # "" " """" #???#### | | #= #???? ???????? # "" " """ #??????# | | #???? #????????# # " " "" #?????# | | #???? #????????#/#! """" " #???# ### | | #??## #????###?# "" "" #???# ??# | | ##?## ????## #?### """" "" " #???## #??# | | #?## #????# ##??# #????#????? | | #?# #????# #### """" """ #?????????? | | #??# #?????# """" """ #?????????? | | #?## ####### """ "" #?????????? | | ### " " "" #?????????? | | " """" #?????????? | +----------------------------------------------------+ Best States ------------- Heat Dissipation 35 Energy Generation 16 Energy Capacity 290 Matter Stores 300 Matter Capacity 300 Sight Range 20 Terrain Scan Density 10 Armor Coverage 225 Evasion (%) 57 Targeting Accuracy 18 Core Analysis 6 Offensive Hacking 10 Defensive Hacking 10 Item Schematics ----------------- Flail | -9/Recycling | Hacked Robot Schematics ------------------ None Fabricated ------------ Nothing Repaired ---------- Nothing Studied --------- Mic. Nuclear Core | -7/Factory | Hacked VSS Leg | -7/Factory | Hacked Carbon-fiber Leg | -7/Factory | Hacked Alien Tech Used ----------------- None Achievements -------------- Sprinter Challenges ------------ None RPGLIKE | -11 -10 -10 -9 -9 -9 -9 -7 -7 --------- Run | Yrd Mat Min Mat Sto Gar Rec Fac Low Levels Raised 7 | . . 1 1 1 2 1 1 . XP Earned 14631 | 3000 510 1021 2611 1000 2449 1540 2000 500 XP Spent 9580 | 1000 . 1500 2400 . . 480 4200 . Upgrades 31 | 2 . 3 3 . . 8 15 . Propulsion Slot 1 | 1 . . . . . . . . Utility Slot 4 | . . . 3 . . . 1 . Weapon Slot 1 | 1 . . . . . . . . Core Integrity 18 | . . . . . . 8 10 . Inventory Capacity 3 | . . 3 . . . . . . Hack Attack % 2 | . . . . . . . 2 . Hack Defense % 2 | . . . . . . . 2 . Protomatter Created 362 | . 31 30 . . 176 125 . . Integrity Restored 392 | . 62 84 . . 246 . . . Core 392 | . 62 84 . . 246 . . . Protomatter Decayed 316 | . . 152 6 . 121 37 . . Game ------ Seed ProjectileMultinovaBoregun Manual? 0 Play Time 00:21:49 Cumulative 44.6 hours Start 2025.11.14 @ 19:58:52 End 2025.11.14 @ 20:19:12 Sessions 1 Manual Loads 0 Difficulty Rogue Special Mode Winter2019/RPGLIKE Game No. 93 Rogue 93 Adventurer 0 Explorer 0 Win Type - Total 0 Types 0/0/0/0/0/0/0/0/0/0 Lore% 15 Gallery% 31 Achievement% 21 Wizard Run 0 Options --------- Layout 0 ASCII 0 Keyboard 0 Movement Mouse Keybinds 0 Fullscreen 2 Font 18/SmallcapsGlow Map View 76x50 Zoom Use 0% Tactical HUD 1 Map Filters NONE Filters NONE Steam 1 RUN: 0e58450d-168d-40d1-ab38-2ae41b48971e